[Event "Kragero Resort International 2022"]
[Site "Kragero"]
[Date "2022.02.26"]
[Round "7.22"]
[White "Stangl, Anita"]
[Black "Fischer, Daniel"]
[Result "1/2-1/2"]
[ECO "B47"]
[WhiteElo "1991"]
[BlackElo "2340"]
[Annotator "NA"]
[PlyCount "107"]
[EventDate "2022.02.23"]
[EventType "swiss"]
[EventCountry "NOR"]
[SourceTitle "playchess.com"]
[Source "ChessBase"]
[SourceQuality "1"]
[TimeControl "5400+30"]

1. e4 {[%emt 0:00:01]} c5 {[%emt 0:02:42]} 2. Nf3 {[%emt 0:00:09]} e6 {[%emt 0:00:03]} 3. d4 {[%emt 0:00:44]} cxd4 {[%emt 0:00:05]} 4. Nxd4 {[%emt 0:00:06]} a6 {[%emt 0:00:03]} 5. Nc3 {[%emt 0:08:43]} Qc7 {[%emt 0:00:06]} 6. g3 {[%emt 0:07:15]} Nf6 {[%emt 0:00:46]} 7. Bg2 {[%emt 0:00:13]} Nc6 {[%emt 0:01:22]} 8. Nb3 {[%emt 0:03:14]} Be7 {[%emt 0:03:36]} 9. Bf4 {[%emt 0:03:12]} d6 {[%emt 0:00:56]} 10. Qd2 {[%emt 0:00:34]} O-O {[%emt 0:00:59]} 11. a4 {[%emt 0:07:21]} Ne5 {[%emt 0:04:15]} 12. Nd1 {[%emt 0:05:55]} (12. Qe2 $11 {keeps the balance.}) 12... Bd7 {[%emt 0:07:27]} 13. O-O {[%emt 0:05:35]} Rac8 {[%emt 0:02:52]} 14. c3 {[%emt 0:02:11]} Bc6 $11 {[%emt 0:11:14]} 15. Re1 {[%emt 0:03:32]} b6 {[%emt 0:02:53]} 16. Qe2 {[%emt 0:03:28]} Bb7 {[%emt 0:01:30]} 17. Bg5 {[%emt 0:11:57]} Rfd8 {[%emt 0:05:17]} 18. Nd4 {[%emt 0:05:51]} h6 {[%emt 0:01:18]} 19. Be3 {[%emt 0:03:23]} Nxe4 {[%emt 0:09:20]} 20. Bxh6 {[%emt 0:04:01]} Nxc3 {[%emt 0:04:28]} 21. bxc3 {[%emt 0:01:02]} gxh6 {[%emt 0:00:22]} 22. f4 {[%emt 0:01:09]} Ng6 {[%emt 0:10:22]} 23. f5 {[%emt 0:03:21]} exf5 {[%emt 0:00:34]} 24. Bxb7 {[%emt 0:03:18]} Qxb7 {[%emt 0:00:05]} 25. Nxf5 {[%emt 0:00:12]} Bf8 {[%emt 0:00:10]} 26. Qd2 {[%emt 0:00:47]} Ne5 {[%emt 0:04:58]} 27. Qg2 {[%emt 0:06:31]} Qxg2+ {[%emt 0:07:56]} 28. Kxg2 {[%emt 0:00:05]} Rc5 {[%emt 0:00:11]} 29. Rb1 {[%emt 0:00:54]} Nc4 {[%emt 0:02:41]} 30. g4 {[%emt 0:00:43]} Re5 {[%emt 0:02:01]} 31. Nde3 {[%emt 0:00:47]} Rde8 {[%emt 0:03:53]} 32. Kf2 {[%emt 0:00:44]} d5 {[%emt 0:03:09]} 33. Nxd5 {[%emt 0:00:56]} Bc5+ {[%emt 0:00:04]} 34. Nd4 {[%emt 0:00:09]} Rxe1 {[%emt 0:00:30]} 35. Rxe1 {[%emt 0:00:08]} Rxe1 {[%emt 0:00:04]} 36. Kxe1 {[%emt 0:00:09]} Nb2 {[%emt 0:02:27]} 37. a5 {[%emt 0:03:21]} bxa5 {[%emt 0:01:27]} 38. Kd2 {[%emt 0:00:02]} Nc4+ {[%emt 0:00:47]} 39. Kc2 {[%emt 0:02:01]} a4 {[%emt 0:00:54]} 40. Nf5 {[%emt 0:00:03]} Kh7 {[%emt 0:00:37]} 41. h4 {[%emt 0:00:26]} Nd6 {[%emt 0:00:58]} 42. Nxd6 {[%emt 0:01:37]} Bxd6 {[%emt 0:00:04]} 43. Nf6+ {[%emt 0:00:03]} Kh8 {[%emt 0:01:11]} 44. Ne4 {[%emt 0:00:23]} Be7 {[%emt 0:00:39]} 45. h5 {[%emt 0:00:40]} Kg7 {[%emt 0:00:27]} 46. c4 {[%emt 0:00:14]} Bb4 {[%emt 0:01:17]} 47. c5 {[%emt 0:00:20]} Bxc5 {[%emt 0:02:18]} 48. Nxc5 {[%emt 0:00:10]} f5 {[%emt 0:00:04]} 49. gxf5 {[%emt 0:02:25]} Kf6 {[%emt 0:00:02]} 50. Nxa4 {[%emt 0:01:11]} Kxf5 {[%emt 0:00:05]} 51. Nc5 {[%emt 0:00:19]} a5 {[%emt 0:00:01]} 52. Nb7 {[%emt 0:00:17]} a4 {[%emt 0:00:04]} 53. Nd6+ {[%emt 0:00:24]} Kg5 {[%emt 0:00:06]} 54. Nf7+ {[%emt 0:00:12]} 1/2-1/2

[Event "Kragero Resort International 2022"]
[Site "Kragero"]
[Date "2022.02.26"]
[Round "7.23"]
[White "Hirneise, Jens"]
[Black "Briem, Stephan"]
[Result "1-0"]
[ECO "C42"]
[WhiteElo "2327"]
[BlackElo "2039"]
[Annotator "NA"]
[PlyCount "57"]
[EventDate "2022.02.23"]
[EventType "swiss"]
[EventCountry "NOR"]
[SourceTitle "playchess.com"]
[Source "ChessBase"]
[SourceQuality "1"]
[TimeControl "5400+30"]

1. e4 {[%emt 0:00:02]} e5 {[%emt 0:00:15]} 2. Nf3 {[%emt 0:00:08]} Nf6 {[%emt 0:00:11]} 3. Nxe5 {[%emt 0:00:11]} d6 {[%emt 0:00:16]} 4. Nf3 {[%emt 0:00:04]} Nxe4 {[%emt 0:00:11]} 5. Bd3 {[%emt 0:00:06]} Nc5 {[%emt 0:08:05]} 6. Be2 {[%emt 0:00:05]} d5 {[%emt 0:08:11]} 7. d4 {[%emt 0:00:06]} Ne4 {[%emt 0:04:16]} 8. O-O {[%emt 0:00:05]} Be7 {[%emt 0:01:13]} 9. c4 {[%emt 0:00:07]} c6 {[%emt 0:04:35]} 10. Nc3 {[%emt 0:00:07]} Nxc3 {[%emt 0:04:37]} 11. bxc3 {[%emt 0:00:02]} dxc4 {[%emt 0:04:33]} 12. Bxc4 {[%emt 0:00:28]} Nd7 {[%emt 0:00:28]} 13. a4 {[%emt 0:05:24]} O-O {[%emt 0:02:58]} 14. a5 {[%emt 0:02:04]} Qc7 {[%emt 0:09:36]} 15. Re1 {[%emt 0:04:29]} Bd6 {[%emt 0:01:12]} 16. Bg5 {[%emt 0:02:44]} b5 {[%emt 0:05:44]} 17. Bd3 {[%emt 0:06:39]} h6 $14 {[%emt 0:03:24]} 18. Bh4 {[%emt 0:02:13]} a6 {[%emt 0:07:24]} 19. Qe2 {[%emt 0:01:10]} Bb7 {[%emt 0:08:30]} 20. Qe4 {[%emt 0:01:43]} g6 {[%emt 0:00:45]} 21. Qg4 {[%emt 0:04:01]} Kg7 {[%emt 0:03:46]} 22. Re6 {[%emt 0:06:58]} Rg8 {[%emt 0:10:22]} 23. Rxg6+ {[%emt 0:14:38]} fxg6 {[%emt 0:00:34]} 24. Qxg6+ {[%emt 0:00:04]} Kf8 {[%emt 0:00:16]} 25. Qf5+ {[%emt 0:06:35]} Kg7 {[%emt 0:03:17]} 26. Re1 {[%emt 0:02:23]} Rh8 {[%emt 0:02:51]} 27. Be7 {[%emt 0:05:43]} Ne5 {[%emt 0:02:57]} 28. Qf6+ {[%emt 0:02:43]} Kg8 {[%emt 0:00:10]} 29. Rxe5 {[%emt 0:01:00]} 1-0

[Event "Kragero Resort International 2022"]
[Site "Kragero"]
[Date "2022.02.26"]
[Round "7.24"]
[White "Bjorgvinsson, Andri Freyr"]
[Black "Alinasab, Mobina"]
[Result "0-1"]
[ECO "E04"]
[WhiteElo "2096"]
[BlackElo "2325"]
[Annotator "NA"]
[PlyCount "102"]
[EventDate "2022.02.23"]
[EventType "swiss"]
[EventCountry "NOR"]
[SourceTitle "playchess.com"]
[Source "ChessBase"]
[SourceQuality "1"]
[TimeControl "5400+30"]

1. d4 {[%emt 0:00:05]} d5 {[%emt 0:00:23]} 2. c4 {[%emt 0:00:45]} e6 {[%emt 0:00:21]} 3. g3 {[%emt 0:01:21]} Nf6 {[%emt 0:00:16]} 4. Bg2 {[%emt 0:00:10]} dxc4 {[%emt 0:00:10]} 5. Nf3 {[%emt 0:00:11]} c6 {[%emt 0:00:09]} 6. O-O {[%emt 0:01:19]} b5 {[%emt 0:00:15]} 7. a4 {[%emt 0:03:38]} Bb7 {[%emt 0:00:16]} 8. b3 {[%emt 0:00:23]} cxb3 {[%emt 0:00:25]} 9. Qxb3 {[%emt 0:00:06]} a6 {[%emt 0:01:29]} 10. Nc3 {[%emt 0:11:33]} Nbd7 {[%emt 0:09:05]} 11. Rd1 {[%emt 0:05:12]} Be7 {[%emt 0:16:16]} ({Black should play} 11... b4 $15 12. Ne1 a5) 12. Ne5 {[%emt 0:15:48]} Nd5 $11 {[%emt 0:00:42]} (12... b4 $5 {[%cal Rb4c3]} 13. Bg5 a5 $15) 13. Ne4 {[%emt 0:03:02]} Nxe5 {[%emt 0:16:40]} 14. dxe5 {[%emt 0:02:18]} O-O {[%emt 0:00:15]} 15. Nd6 {[%emt 0:13:34]} Qc7 {[%emt 0:08:18]} 16. Ba3 {[%emt 0:02:32]} Nb6 {[%emt 0:19:33]} 17. Rac1 {[%emt 0:11:20]} Nc4 {[%emt 0:08:10]} 18. Nxc4 {[%emt 0:02:30]} bxc4 {[%emt 0:00:07]} 19. Rxc4 {[%emt 0:00:35]} Bxa3 {[%emt 0:00:08]} 20. Qxa3 {[%emt 0:00:04]} Qxe5 {[%emt 0:01:18]} 21. Qb3 {[%emt 0:04:47]} Rab8 {[%emt 0:00:48]} 22. Rb4 {[%emt 0:01:03]} Ba8 {[%emt 0:00:46]} 23. Rxb8 {[%emt 0:01:52]} Rxb8 {[%emt 0:01:42]} 24. Qd3 {[%emt 0:00:06]} Qa5 {[%emt 0:00:14]} 25. Qd6 {[%emt 0:00:09]} Rf8 {[%emt 0:03:14]} 26. Bxc6 {[%emt 0:00:36]} h5 {[%emt 0:00:12]} 27. h4 {[%emt 0:02:36]} Bxc6 {[%emt 0:02:40]} 28. Qxc6 {[%emt 0:00:06]} Rb8 {[%emt 0:00:06]} 29. Qe4 {[%emt 0:06:47]} Qc3 {[%emt 0:03:14]} 30. Qf4 {[%emt 0:04:11]} Rc8 {[%emt 0:05:53]} 31. Rd7 {[%emt 0:05:07]} Qc1+ {[%emt 0:00:11]} 32. Qxc1 {[%emt 0:00:21]} Rxc1+ {[%emt 0:00:03]} 33. Kg2 {[%emt 0:00:06]} Rc4 {[%emt 0:00:08]} 34. Kf3 {[%emt 0:02:00]} Rxa4 {[%emt 0:00:04]} 35. Ra7 {[%emt 0:00:09]} g6 {[%emt 0:00:27]} 36. e3 {[%emt 0:00:31]} Kg7 {[%emt 0:00:08]} 37. Rc7 {[%emt 0:00:52]} Kf6 {[%emt 0:00:11]} 38. Ra7 {[%emt 0:00:30]} e5 {[%emt 0:01:03]} 39. Ra8 {[%emt 0:00:40]} Ke6 {[%emt 0:03:18]} 40. Re8+ {[%emt 0:00:12]} Kf5 {[%emt 0:00:16]} 41. Re7 {[%emt 0:01:15]} f6 {[%emt 0:00:37]} 42. Ra7 {[%emt 0:00:12]} e4+ {[%emt 0:00:18]} 43. Kg2 {[%emt 0:00:03]} Ra2 {[%emt 0:01:35]} 44. Rb7 {[%emt 0:00:09]} Ra4 {[%emt 0:00:31]} 45. Rc7 {[%emt 0:00:37]} g5 {[%emt 0:00:27]} 46. Rc5+ {[%emt 0:00:25]} Kg4 {[%emt 0:00:23]} 47. Rc6 {[%emt 0:00:29]} gxh4 {[%emt 0:00:37]} 48. gxh4 {[%emt 0:00:04]} f5 {[%emt 0:00:28]} 49. Rf6 {[%emt 0:01:54]} a5 {[%emt 0:00:06]} 50. Kf1 {[%emt 0:00:40]} Ra1+ {[%emt 0:00:16]} 51. Ke2 {[%emt 0:00:15]} a4 {[%emt 0:00:07]} 0-1

[Event "Kragero Resort International 2022"]
[Site "Kragero"]
[Date "2022.02.26"]
[Round "7.25"]
[White "Zadruzny, Nicolaj"]
[Black "Mierins, Emils Janis"]
[Result "1/2-1/2"]
[ECO "B38"]
[WhiteElo "2280"]
[BlackElo "2025"]
[Annotator "ChessBase"]
[PlyCount "221"]
[EventDate "2022.02.23"]
[EventType "swiss"]
[EventCountry "NOR"]
[SourceTitle "playchess.com"]
[Source "ChessBase"]
[SourceQuality "1"]
[TimeControl "5400+30"]

1. d4 {[%emt 0:00:26]} Nf6 {[%emt 0:00:04]} 2. Nf3 {[%emt 0:00:14]} g6 {[%emt 0:00:15]} 3. c4 {[%emt 0:03:56]} c5 {[%emt 0:02:29]} 4. Nc3 {[%emt 0:00:34]} cxd4 {[%emt 0:02:18]} 5. Nxd4 {[%emt 0:00:45]} Bg7 {[%emt 0:03:49]} 6. e4 {[%emt 0:00:32]} O-O {[%emt 0:00:17]} 7. Be2 {[%emt 0:03:05]} Nc6 {[%emt 0:00:15]} 8. Be3 {[%emt 0:00:10]} d6 {[%emt 0:00:57]} 9. O-O {[%emt 0:00:27]} a6 {[%emt 0:00:18]} 10. Qd2 {[%emt 0:05:03]} Nd7 {[%emt 0:10:47]} 11. Nc2 {[%emt 0:26:26]} Nb6 {[%emt 0:09:19]} 12. Rad1 {[%emt 0:06:19]} Be6 {[%emt 0:07:23]} 13. b3 {[%emt 0:02:06]} Qc7 {[%emt 0:03:38]} 14. f4 {[%emt 0:04:25]} f5 {[%emt 0:02:07]} 15. Nd5 {[%emt 0:01:10]} Bxd5 {[%emt 0:00:35]} 16. exd5 {[%emt 0:04:12]} Nd8 {[%emt 0:00:38]} 17. Bd4 {[%emt 0:01:54]} Nd7 {[%emt 0:01:07]} 18. Bxg7 {[%emt 0:02:17]} Kxg7 {[%emt 0:00:05]} 19. Nd4 {[%emt 0:00:36]} Nf6 {[%emt 0:01:23]} 20. Bf3 {[%emt 0:08:14]} b5 {[%emt 0:02:18]} 21. Rc1 {[%emt 0:05:09]} bxc4 {[%emt 0:01:54]} 22. Rxc4 {[%emt 0:00:18]} Qb7 {[%emt 0:02:26]} 23. Rfc1 {[%emt 0:08:42]} Ne4 {[%emt 0:01:50]} 24. Bxe4 {[%emt 0:01:09]} fxe4 {[%emt 0:00:07]} 25. Nc6 {[%emt 0:03:21]} Nxc6 {[%emt 0:00:54]} 26. dxc6 {[%emt 0:03:23]} Qb6+ {[%emt 0:01:03]} 27. Kh1 {[%emt 0:02:17]} e3 {[%emt 0:02:17]} 28. Qc3+ {[%emt 0:00:03]} e5 {[%emt 0:01:18]} 29. Re4 {[%emt 0:00:52]} Rac8 {[%emt 0:01:16]} 30. h3 {[%emt 0:04:00]} e2 {[%emt 0:01:19]} 31. Rxe2 {[%emt 0:00:18]} Rxf4 {[%emt 0:00:07]} 32. Rd2 {[%emt 0:01:22]} Rxc6 {[%emt 0:01:50]} 33. Qxc6 {[%emt 0:00:34]} Rf1+ {[%emt 0:00:04]} 34. Rxf1 {[%emt 0:01:54]} Qxc6 {[%emt 0:00:26]} 35. Rfd1 {[%emt 0:00:31]} Qc3 {[%emt 0:03:38]} 36. Rxd6 {[%emt 0:00:20]} a5 {[%emt 0:01:04]} 37. R6d3 {[%emt 0:00:57]} Qc2 {[%emt 0:00:34]} 38. R3d2 {[%emt 0:00:29]} Qc3 {[%emt 0:00:12]} 39. Re2 {[%emt 0:00:34]} Qc5 {[%emt 0:03:37]} 40. Rde1 {[%emt 0:00:37]} Qa3 {[%emt 0:00:02]} 41. Rc2 {[%emt 0:00:42]} a4 {[%emt 0:01:42]} 42. bxa4 {[%emt 0:00:29]} Qxa4 {[%emt 0:00:04]} 43. Rce2 {[%emt 0:00:32]} h5 {[%emt 0:00:42]} 44. Rf2 {[%emt 0:00:32]} Qa5 {[%emt 0:01:30]} 45. Re3 {[%emt 0:00:30]} Qc5 {[%emt 0:07:42]} 46. Rfe2 {[%emt 0:00:02]} Qc1+ {[%emt 0:00:26]} 47. Kh2 {[%emt 0:00:22]} Qf1 {[%emt 0:00:50]} 48. Rxe5 {[%emt 0:00:18]} Qf4+ {[%emt 0:00:09]} 49. g3 {[%emt 0:00:23]} Qa4 {[%emt 0:00:35]} 50. h4 {[%emt 0:00:24]} Qd1 {[%emt 0:00:54]} 51. Rf2 {[%emt 0:00:52]} Qd7 {[%emt 0:01:03]} 52. Re4 {[%emt 0:00:30]} Qb7 {[%emt 0:00:19]} 53. Ref4 {[%emt 0:00:10]} Qa6 {[%emt 0:00:18]} 54. Rf6 {[%emt 0:01:05]} Qc4 {[%emt 0:00:40]} 55. Rf8 {[%emt 0:00:47]} Kh6 {[%emt 0:01:04]} 56. R8f4 {[%emt 0:00:19]} Qa6 {[%emt 0:00:10]} 57. a4 {[%emt 0:00:07]} Qa5 {[%emt 0:00:20]} 58. Rb2 {[%emt 0:01:10]} Qe5 {[%emt 0:00:28]} 59. Ra2 {[%emt 0:00:32]} Qd5 {[%emt 0:00:32]} 60. Rff2 {[%emt 0:00:17]} Qa5 {[%emt 0:00:21]} 61. Rfb2 {[%emt 0:00:26]} Kg7 {[%emt 0:00:43]} 62. Rb5 {[%emt 0:00:29]} Qa6 {[%emt 0:00:06]} 63. Rc5 {[%emt 0:00:38]} Qb6 {[%emt 0:00:41]} 64. Rac2 {[%emt 0:00:18]} Qb3 {[%emt 0:01:01]} 65. a5 {[%emt 0:00:16]} Qa3 {[%emt 0:00:16]} 66. Rg5 {[%emt 0:00:39]} Qa4 {[%emt 0:01:06]} 67. Rb2 {[%emt 0:00:34]} Qc4 {[%emt 0:00:35]} 68. Rgb5 {[%emt 0:00:43]} Qa4 {[%emt 0:00:05]} 69. Rc5 {[%emt 0:00:37]} Kh6 {[%emt 0:00:41]} 70. Rbc2 {[%emt 0:00:33]} Qa1 {[%emt 0:00:38]} 71. Kg2 {[%emt 0:00:14]} Qa4 {[%emt 0:00:07]} 72. R2c3 {[%emt 0:00:42]} Qe4+ {[%emt 0:00:19]} 73. Kf2 {[%emt 0:00:14]} Qd4+ {[%emt 0:00:22]} 74. Ke2 {[%emt 0:00:10]} Qa4 {[%emt 0:00:44]} 75. Kd3 {[%emt 0:01:01]} Qa2 {[%emt 0:01:52]} 76. Kd4 {[%emt 0:00:30]} Qa4+ {[%emt 0:00:18]} 77. Kd3 {[%emt 0:00:35]} Qa2 {[%emt 0:00:05]} 78. Rg5 {[%emt 0:00:20]} Qa4 {[%emt 0:00:29]} 79. Rc4 {[%emt 0:00:25]} Qa3+ {[%emt 0:00:35]} 80. Ke4 {[%emt 0:00:42]} Qd6 {[%emt 0:00:47]} 81. Rcc5 {[%emt 0:00:28]} Qd7 {[%emt 0:02:18]} 82. Rb5 {[%emt 0:00:28]} Qe6+ {[%emt 0:00:39]} 83. Kd4 {[%emt 0:00:07]} Qd6+ {[%emt 0:00:08]} 84. Kc4 {[%emt 0:00:47]} Qc6+ {[%emt 0:01:02]} 85. Kb4 {[%emt 0:00:38]} Qd6+ {[%emt 0:00:23]} 86. Rbc5 {[%emt 0:00:14]} Qa6 {[%emt 0:00:31]} 87. Ka4 {[%emt 0:00:53]} Qb7 {[%emt 0:00:52]} 88. Rb5 {[%emt 0:00:28]} Qe4+ {[%emt 0:01:11]} 89. Rb4 {[%emt 0:00:20]} Qc6+ {[%emt 0:00:07]} 90. Kb3 {[%emt 0:00:29]} Qe6+ {[%emt 0:01:42]} 91. Rc4 {[%emt 0:00:22]} Qd6 {[%emt 0:04:13]} 92. Ka4 {[%emt 0:00:49]} Qd7+ {[%emt 0:01:44]} 93. Kb4 {[%emt 0:00:31]} Qb7+ {[%emt 0:04:06]} 94. Rb5 {[%emt 0:00:21]} Qe7+ {[%emt 0:00:06]} 95. Rbc5 {[%emt 0:00:38]} Qb7+ {[%emt 0:01:16]} 96. Ka4 {[%emt 0:00:17]} Qd7+ {[%emt 0:00:02]} 97. Rc6 {[%emt 0:00:21]} Qd1+ {[%emt 0:00:15]} 98. Kb5 {[%emt 0:00:48]} Qb3+ {[%emt 0:00:13]} 99. Rb4 {[%emt 0:00:37]} Qd5+ {[%emt 0:01:04]} 100. Kb6 {[%emt 0:00:23]} Qd8+ {[%emt 0:00:14]} 101. Kb5 {[%emt 0:00:38]} Qd5+ {[%emt 0:00:06]} 102. Rc5 {[%emt 0:00:17]} Qb7+ {[%emt 0:00:13]} 103. Ka4 {[%emt 0:00:28]} Qd7+ {[%emt 0:00:09]} 104. Rcb5 {[%emt 0:00:31]} Qc6 {[%emt 0:00:46]} 105. Rb3 {[%emt 0:00:42]} Qc4+ {[%emt 0:00:15]} 106. Ka3 {[%emt 0:00:15]} Qc1+ {[%emt 0:00:11]} 107. Kb4 {[%emt 0:00:19]} Qc6 {[%emt 0:03:10]} 108. Rb6 {[%emt 0:00:41]} Qe4+ {[%emt 0:00:17]} 109. Kb5 {[%emt 0:00:47]} Qd5+ {[%emt 0:00:06]} 110. Ka4 {[%emt 0:00:20]} Qd7+ {[%emt 0:00:45]} 111. Ka3 {[%emt 0:00:22]} 1/2-1/2

[Event "Kragero Resort International 2022"]
[Site "Kragero"]
[Date "2022.02.26"]
[Round "7.26"]
[White "Unneland, Mathias"]
[Black "Sorensen, Simen"]
[Result "1/2-1/2"]
[ECO "B48"]
[WhiteElo "2262"]
[BlackElo "2014"]
[Annotator "NA"]
[PlyCount "93"]
[EventDate "2022.02.23"]
[EventType "swiss"]
[EventCountry "NOR"]
[SourceTitle "playchess.com"]
[Source "ChessBase"]
[SourceQuality "1"]
[TimeControl "5400+30"]

1. e4 {[%emt 0:00:13]} c5 {[%emt 0:00:51]} 2. Nf3 {[%emt 0:00:19]} e6 {[%emt 0:00:22]} 3. d4 {[%emt 0:00:18]} cxd4 {[%emt 0:00:08]} 4. Nxd4 {[%emt 0:00:09]} Nc6 {[%emt 0:00:07]} 5. Nc3 {[%emt 0:00:37]} Qc7 {[%emt 0:00:36]} 6. Be3 {[%emt 0:00:31]} a6 {[%emt 0:00:15]} 7. Qf3 {[%emt 0:01:08]} d6 {[%emt 0:01:09]} 8. Nxc6 {[%emt 0:01:04]} Qxc6 {[%emt 0:06:51]} 9. O-O-O {[%emt 0:02:21]} b5 {[%emt 0:04:00]} 10. a3 {[%emt 0:04:52]} Bb7 {[%emt 0:03:00]} 11. Be2 {[%emt 0:06:56]} Nf6 {[%emt 0:03:21]} 12. Qg3 {[%emt 0:01:11]} Rc8 {[%emt 0:03:00]} 13. Bf3 {[%emt 0:05:46]} Nd7 {[%emt 0:07:44]} 14. Bf4 {[%emt 0:08:15] [#]} (14. Rd2 $11) 14... e5 $1 {[%emt 0:08:28]} 15. Be3 {[%emt 0:00:41] [#]} (15. Qh3 $17) 15... a5 $19 {[%emt 0:00:49]} 16. Rd2 {[%emt 0:13:07]} b4 {[%emt 0:01:39]} 17. Nb1 {[%emt 0:01:15]} Nf6 {[%emt 0:06:19]} 18. Re1 {[%emt 0:02:24]} Nxe4 {[%emt 0:11:17]} 19. Bxe4 {[%emt 0:04:00]} Qxe4 {[%emt 0:00:23]} 20. f4 {[%emt 0:00:07]} Qg6 {[%emt 0:10:30]} 21. Qh3 {[%emt 0:04:14]} f5 {[%emt 0:04:20]} 22. fxe5 {[%emt 0:05:13]} dxe5 {[%emt 0:00:25]} 23. Bf4 {[%emt 0:00:50]} e4 {[%emt 0:00:33]} 24. Qd3 {[%emt 0:02:46]} Qc6 {[%emt 0:01:19]} 25. Qd4 {[%emt 0:00:15]} bxa3 {[%emt 0:02:49]} 26. Qe5+ {[%emt 0:00:12]} Be7 {[%emt 0:01:30]} 27. Nxa3 {[%emt 0:01:37]} Qf6 {[%emt 0:01:32]} 28. Qxf6 {[%emt 0:08:20]} gxf6 {[%emt 0:01:26]} 29. Nb5 {[%emt 0:00:46]} Kf7 {[%emt 0:02:19]} 30. Red1 {[%emt 0:06:24]} Ba6 {[%emt 0:05:14]} 31. Nd6+ {[%emt 0:00:45]} Bxd6 {[%emt 0:00:25]} 32. Rxd6 {[%emt 0:00:09]} Bd3 {[%emt 0:01:26]} 33. Rd2 {[%emt 0:00:15]} Rc5 {[%emt 0:00:48]} 34. Kb1 {[%emt 0:02:14]} Bb5 {[%emt 0:00:23]} 35. Be3 {[%emt 0:01:37]} Rc6 {[%emt 0:01:26]} 36. R6d5 {[%emt 0:03:29]} Rb8 {[%emt 0:01:33]} 37. Rxf5 {[%emt 0:01:13]} a4 {[%emt 0:01:04]} 38. Rd4 {[%emt 0:01:27]} Kg6 {[%emt 0:00:53]} 39. g4 {[%emt 0:01:07]} Be2 {[%emt 0:00:43]} 40. Rxe4 {[%emt 0:02:18]} Bxg4 {[%emt 0:01:14]} 41. Rc5 {[%emt 0:03:30]} Bf5 {[%emt 0:01:59]} 42. Rxa4 {[%emt 0:02:23]} Rcb6 {[%emt 0:01:47]} 43. Bd4 {[%emt 0:00:59]} Re6 {[%emt 0:00:19]} 44. Bf2 {[%emt 0:02:17]} Reb6 {[%emt 0:01:00]} 45. Bd4 {[%emt 0:00:06]} Re6 {[%emt 0:00:07]} 46. h4 {[%emt 0:02:33]} h5 {[%emt 0:00:48]} 47. Bf2 {[%emt 0:01:08]} 1/2-1/2

[Event "Kragero Resort International 2022"]
[Site "Kragero"]
[Date "2022.02.26"]
[Round "7.27"]
[White "Altarbosh, Ward"]
[Black "Krivenko, Dion"]
[Result "1-0"]
[ECO "B45"]
[WhiteElo "2221"]
[BlackElo "2012"]
[Annotator "NA"]
[PlyCount "103"]
[EventDate "2022.02.23"]
[EventType "swiss"]
[EventCountry "NOR"]
[SourceTitle "playchess.com"]
[Source "ChessBase"]
[SourceQuality "1"]
[TimeControl "5400+30"]

1. e4 {[%emt 0:00:06]} c5 {[%emt 0:00:07]} 2. Nf3 {[%emt 0:00:05]} e6 {[%emt 0:00:05]} 3. d4 {[%emt 0:00:07]} cxd4 {[%emt 0:00:06]} 4. Nxd4 {[%emt 0:00:06]} Nf6 {[%emt 0:00:05]} 5. Nc3 {[%emt 0:00:09]} Nc6 {[%emt 0:00:13]} 6. Nxc6 {[%emt 0:00:05]} bxc6 {[%emt 0:00:07]} 7. e5 {[%emt 0:00:04]} Nd5 {[%emt 0:00:08]} 8. Ne4 {[%emt 0:00:04]} Qc7 {[%emt 0:00:07]} 9. f4 {[%emt 0:00:05]} Qb6 {[%emt 0:00:05]} 10. c4 {[%emt 0:00:03]} Bb4+ {[%emt 0:00:41]} 11. Ke2 {[%emt 0:00:05]} f5 {[%emt 0:00:14]} 12. exf6 {[%emt 0:00:33]} Nxf6 {[%emt 0:00:52]} 13. Be3 {[%emt 0:00:06]} Qa5 {[%emt 0:00:54]} 14. Nxf6+ {[%emt 0:00:05]} gxf6 {[%emt 0:00:06]} 15. a3 {[%emt 0:00:02] has lost popularity (15.Kf2).} Qh5+ {[%emt 0:00:13]} 16. Kf2 {[%emt 0:00:14]} Qxd1 {[%emt 0:00:16]} 17. Rxd1 {[%emt 0:00:01]} Be7 {[%emt 0:00:11]} 18. Be2 {[%emt 0:20:29]} h5 {[%emt 0:00:37]} 19. Rd2 {[%emt 0:00:02]} a5 {[%emt 0:00:31] [#]} 20. Rhd1 $146 {[%emt 0:00:14]} ({Predecessor:} 20. Bd3 d5 21. Bg6+ Kf8 22. cxd5 cxd5 23. Rc1 Bd6 24. Rc6 Ke7 25. f5 h4 26. Bc5 Bxc5+ 27. Rxc5 Bd7 {½-½ (27) Daubenfeld,N (2475)-Goncharenko,G (2512) ICCF email 2008}) 20... c5 {[%emt 0:05:02]} 21. f5 {[%emt 0:03:43]} Rb8 {[%emt 0:12:16]} 22. Bf3 {[%emt 0:03:48]} e5 {[%emt 0:00:36]} 23. Kg1 {[%emt 0:02:40]} Rb3 {[%emt 0:06:48]} 24. Bf2 $11 {[%emt 0:01:07]} h4 {[%emt 0:19:04]} 25. h3 {[%emt 0:19:14]} Rh7 {[%emt 0:10:37]} 26. Re1 {[%emt 0:00:27]} d6 {[%emt 0:05:53]} 27. Bc6+ {[%emt 0:00:19]} Kf8 {[%emt 0:02:34]} 28. Be4 {[%emt 0:00:03]} Rh5 {[%emt 0:01:38]} 29. Bf3 {[%emt 0:00:01]} Rxf3 {[%emt 0:07:33]} 30. gxf3 {[%emt 0:00:08]} Bb7 {[%emt 0:02:23]} 31. Re4 {[%emt 0:01:54]} Rxf5 {[%emt 0:01:01]} 32. Rxh4 {[%emt 0:00:07]} Bxf3 {[%emt 0:01:44]} 33. Be3 {[%emt 0:00:57]} Rh5 {[%emt 0:03:19]} 34. Rxh5 {[%emt 0:00:02]} Bxh5 {[%emt 0:00:02]} 35. h4 {[%emt 0:13:12]} Kf7 {[%emt 0:04:34]} 36. Kf2 {[%emt 0:03:21]} Ke6 {[%emt 0:02:17]} 37. b3 {[%emt 0:00:32]} Kf5 {[%emt 0:01:42]} 38. Rd5 {[%emt 0:00:28]} Kg4 {[%emt 0:04:30]} 39. Bd2 {[%emt 0:00:45]} f5 {[%emt 0:01:46]} 40. Bg5 {[%emt 0:03:33]} Bxg5 {[%emt 0:02:38]} 41. hxg5 {[%emt 0:00:02]} Kxg5 {[%emt 0:01:10]} 42. Rxd6 {[%emt 0:00:05]} Kf4 {[%emt 0:00:19]} 43. Rd5 {[%emt 0:03:46]} e4 {[%emt 0:00:53]} 44. Rxc5 {[%emt 0:00:15]} e3+ {[%emt 0:02:19]} 45. Ke1 {[%emt 0:16:42]} Bg4 {[%emt 0:01:11]} 46. Rxa5 {[%emt 0:00:12]} Ke4 {[%emt 0:00:06]} 47. c5 {[%emt 0:00:06]} Kd3 {[%emt 0:01:29]} 48. Ra4 {[%emt 0:00:19]} Bf3 {[%emt 0:00:45]} 49. Rf4 {[%emt 0:00:11]} Be4 {[%emt 0:00:24]} 50. Rxe4 {[%emt 0:00:02]} Kxe4 {[%emt 0:00:14]} 51. c6 {[%emt 0:00:03]} f4 {[%emt 0:00:06]} 52. c7 {[%emt 0:00:02]} 1-0